bitfinex-derivatives/quotes_ETHF0:USTF0_20210102
["timestamp","ask_amount","ask_price","bid_price","bid_amount"]
[1609573114485,6.01438,734.16,734.12,6.01438]
[1609573115084,6.01438,734.16,734.12,4.38]
[1609573116488,88.2587,734.13,734.12,4.38]
[1609573116888,6.01438,734.16,734.12,4.38]
[1609573120092,6.01438,734.16,734.04,77.965]
[1609573120491,0.24580917,734.24,734.12,6.01438]
[1609573120893,0.24580917,734.24,734.15,87.9858]
[1609573121097,6.01438,734.26,734.15,87.9858]
[1609573126101,6.01438,734.26,734.07,4.619]
[1609573126302,6.01438,734.26,733.95,0.6]
[1609573126704,6.01438,733.99,733.95,0.6]
[1609573126905,85.8229,734.39,733.95,0.6]
[1609573127105,85.8229,734.39,733.96,16.1955]
[1609573128707,6.01438,734.16,734.06,6.01438]
[1609573133415,86.0692819,734.39,734.06,6.01438]
[1609573133614,85.8229,734.39,734.06,6.01438]
[1609573134415,85.8229,734.39,733.96,16.1955]
[1609573134617,6.01438,734.23,734.02,6.01438]
[1609573135616,6.01438,734.23,734.06,79.4638]
[1609573136621,6.01438,734.31,734.22,6.01438]
[1609573137018,6.01438,734.31,734.29,76.8501]
[1609573138626,6.01438,734.44,734.3,6.01438]
[1609573138926,6.01438,734.44,734.29,76.8501]
[1609573139926,6.01438,734.44,734.12,3.787]
[1609573140626,6.01438,734.28,734.14,6.01438]
[1609573140826,6.01438,734.28,734.12,3.787]
[1609573141930,6.01438,734.28,734.01,91.5564]
[1609573142630,6.01438,734.28,734.16,6.01438]
[1609573144632,6.01438,734.17,734.16,6.01438]
[1609573146335,6.01438,734.17,734.15,4.25]
[1609573148537,6.01438,734.17,734.04,6.01438]
[1609573158454,0.24652677,734.46,734.04,21.01438]
[1609573158655,0.24645255,734.45,734.21,88.0126]
[1609573160256,0.24647094,734.48,734.21,88.0126]
[1609573160756,6.01438,734.33,734.21,88.0126]
[1609573160956,6.01438,734.33,734.2,4.18]
[1609573165964,6.01438,734.33,734.18,6.01438]
[1609573166765,6.01438,734.33,734.28,6.01438]
[1609573168867,6.01438,734.33,734.32,109.0728]
[1609573170375,6.01438,734.33,734.28,6.01438]
[1609573171874,6.01438,734.33,734.21,98.2056]
[1609573172779,6.01438,734.33,734.23,6.01438]
[1609573173880,0.24742386,734.51,734.41,112.9572]
[1609573174784,0.24742386,734.51,734.5,6.01438]
[1609573175086,0.24725429,734.52,734.5,6.01438]
[1609573175486,0.24725429,734.52,734.51,79.3359]
[1609573176093,0.2473736,734.59,734.51,79.3359]
[1609573176886,6.83895867,734.62,734.51,79.3359]
[1609573176887,0.24739788,734.61,734.51,79.3359]
[1609573178388,6.26179354,734.62,734.51,79.3359]
[1609573178989,6.01438,734.52,734.51,79.3359]
[1609573183296,6.01438,734.52,734.5,6.01438]
[1609573187602,6.01438,734.52,734.51,81.2783]
[1609573190607,6.01438,734.52,734.5,6.01438]
[1609573191005,6.01438,734.52,734.33,4.13]
[1609573191206,80.9279,734.51,734.18,4.357]
[1609573191405,80.9279,734.51,734.12,86.4358]
[1609573191607,110.4263,734.26,733.99,14.95234464]
[1609573192707,110.4263,734.26,733.85,114.1923]
[1609573192708,110.4263,734.26,733.97,14.95346323]
[1609573192907,110.4263,734.26,734.14,6.01438]
[1609573193108,110.4263,734.26,734.14,10.50738]
[1609573193907,110.4263,734.26,734.14,4.493]
[1609573194709,0.24711094,734.34,734.14,4.493]
[1609573194908,6.01438,734.15,734.14,4.493]
[1609573195112,100.13128,734.15,734.14,4.493]
[1609573195309,85.13128,734.15,733.78,14.95621623]
[1609573195710,85.13128,734.15,733.78,110.64631623]
[1609573195909,6.01438,734.15,733.78,14.95621623]
[1609573196410,6.01438,734.15,733.85,83.8912]
[1609573196909,6.01438,733.96,733.85,83.8912]
[1609573198413,6.01438,733.96,733.95,17.7326]
[1609573198913,6.01438,733.96,733.95,23.74698]
[1609573199718,0.24681902,734.19,733.95,3.873]
[1609573199918,0.24681902,734.19,734.03,84.3858]
[1609573201018,6.01438,734.16,734.05,6.01438]
[1609573202122,0.24681902,734.19,734.03,84.3858]
[1609573203024,6.01438,734.04,734.03,84.3858]
[1609573204228,0.24681902,734.19,734.03,84.3858]
[1609573204635,0.24686382,734.22,734.03,84.3858]
[1609573205027,0.24686382,734.22,733.98,6.01438]
[1609573205028,6.01438,734.16,733.98,6.01438]
[1609573205230,6.01438,734.16,734.11,91.8888]
[1609573206428,0.24711098,734.37,734.11,91.8888]
[1609573206633,0.24711098,734.37,733.98,6.01438]
[1609573206836,0.24711098,734.37,734.26,97.5693]
[1609573207036,6.01438,734.27,734.26,97.5693]
[1609573207234,6.01438,734.27,733.98,6.01438]
[1609573209137,6.01438,734.27,734.1,6.01438]
[1609573209534,6.01438,734.27,734.11,13.476]
[1609573211738,6.01438,734.27,734.11,18.322]
[1609573212338,0.24707295,734.38,734.11,18.322]
[1609573212538,0.24707295,734.38,734.11,4.846]
[1609573212739,0.24707295,734.38,734.16,99.6879]
[1609573212941,0.24710589,734.41,734.16,99.6879]
[1609573213140,6.01438,734.33,734.16,99.6879]
[1609573214041,91.29458,734.33,734.11,4.846]
[1609573215043,6.01438,734.12,734.11,4.846]
[1609573216743,6.01438,734.12,734.11,103.9794]
[1609573216943,0.24689235,734.32,734.11,103.9794]
[1609573217143,6.01438,734.23,734.11,103.9794]
[1609573218344,6.01438,734.23,733.95,3.873]
[1609573218544,6.01438,734.23,734.09,80.7648]
[1609573221146,6.01438,734.1,734.09,80.7648]
[1609573221346,0.24681582,734.32,733.95,3.873]
[1609573221548,0.24681582,734.32,733.97,98.1518]
[1609573221748,0.24681582,734.32,733.95,3.873]
[1609573221749,0.24671758,734.29,733.95,3.873]
[1609573222047,0.24671758,734.29,734.04,84.7753]
[1609573223151,6.01438,734.13,734.04,84.7753]
[1609573225348,6.01438,734.13,734.1,6.01438]
[1609573226049,0.24664469,734.27,734.1,6.01438]
[1609573227248,0.24664469,734.27,734.26,6.01438]
[1609573227449,0.24664469,734.27,734.03,141.1579]
[1609573227649,0.24664469,734.27,733.95,18.873]
[1609573228049,0.24664469,734.27,734.21,93.8049]
[1609573229252,0.24664469,734.27,734.26,6.01438]
[1609573232259,0.24673833,734.38,734.26,6.01438]
[1609573233361,6.01438,734.52,734.37,6.01438]
[1609573235163,6.01438,734.52,734.49,103.0439]
[1609573238368,6.01438,734.52,734.14,6.01438]
[1609573238569,15.0,734.51,734.38,109.5907]
[1609573239268,6.01438,734.39,734.38,109.5907]
[1609573240568,6.01438,734.39,734.11,2.999]
[1609573241369,6.01438,734.12,734.11,6.01438]
[1609573242471,6.01438,734.12,734.06,111.6203]
[1609573245874,0.24665538,734.35,734.06,111.6203]
[1609573246274,0.24665538,734.35,734.03,6.01438]
[1609573246475,0.24665538,734.35,734.31,83.6469]
[1609573247474,6.01438,734.32,734.31,83.6469]
[1609573249178,0.24658812,734.36,734.31,83.6469]
[1609573253482,6.01438,734.34,734.31,83.6469]
[1609573253883,0.24658812,734.36,734.31,83.6469]
[1609573255489,6.01438,734.35,734.31,83.6469]
[1609573257393,0.2469318,734.5,734.31,83.6469]
[1609573257594,6.01438,734.45,734.31,83.62496565]
[1609573259492,6.01438,734.45,734.39,6.01438]
[1609573261598,0.24690499,734.51,734.39,6.01438]
[1609573262798,0.24691658,734.52,734.39,6.01438]
[1609573263601,0.24691658,734.52,734.51,16.0895]
[1609573267307,0.24701399,734.54,734.51,16.0895]
[1609573268506,0.24676417,734.55,734.51,16.0895]
[1609573269809,6.01438,734.52,734.51,16.0895]
[1609573276514,6.01438,734.52,734.5,6.01438]
[1609573278519,0.24649016,734.55,734.48,91.252]
[1609573279319,0.24644514,734.54,734.48,91.252]
[1609573280017,6.01438,734.52,734.51,6.01438]
[1609573280417,6.01438,734.52,734.51,119.09228]
[1609573284425,0.24693993,734.54,734.51,119.09228]
[1609573288832,1.31701298,734.61,734.51,119.09228]
[1609573288833,0.24701004,734.55,734.51,119.09228]
[1609573289834,0.2472312,734.6,734.51,119.09228]
[1609573290035,0.2472312,734.6,734.59,6.01438]
[1609573290836,0.2472312,734.6,734.59,18.33448]
[1609573292438,6.01438,734.71,734.59,18.33448]
[1609573292439,1.97790807,734.65,734.59,18.33448]
[1609573293740,1.97790807,734.65,734.59,12.3201]
[1609573294137,1.97935932,734.67,734.59,12.3201]
[1609573294337,1.97935932,734.67,734.66,6.01438]
[1609573294939,7.62309145,734.74,734.66,6.01438]
[1609573296343,6.01438,734.67,734.66,6.01438]
[1609573296541,7.99220245,734.67,734.66,6.01438]
[1609573298043,12.97612211,734.67,734.66,6.01438]
[1609573298645,12.97612211,734.67,734.66,82.42918]
[1609573299245,6.96174211,734.67,734.66,82.42918]
[1609573299946,4.98391966,734.67,734.66,82.42918]
[1609573301748,6.01438,734.89,734.66,82.42918]
[1609573301749,0.82423631,734.68,734.66,82.42918]
[1609573305053,0.24725812,734.67,734.66,82.42918]
[1609573306152,0.24719273,734.69,734.66,82.42918]
[1609573307654,0.24719273,734.69,734.66,76.4148]
[1609573308352,0.24719273,734.69,734.68,6.01438]
[1609573309155,0.82397576,734.71,734.68,6.01438]
[1609573314568,0.24729203,734.69,734.68,6.01438]
[1609573316166,0.82397576,734.71,734.68,6.01438]
[1609573316867,0.82397576,734.71,734.7,110.2118]
[1609573317066,1.31861423,734.74,734.7,110.2118]
[1609573318367,0.24723868,734.72,734.7,110.2118]
[1609573318767,0.24723868,734.72,734.68,6.01438]
[1609573318968,0.24723868,734.72,734.71,95.6073]
[1609573319569,0.24729694,734.75,734.71,95.6073]
[1609573322870,0.24735342,734.78,734.71,95.6073]
[1609573324269,0.24737286,734.8,734.71,95.6073]
[1609573324773,0.24737286,734.8,734.79,15.3232]
[1609573325481,0.24737286,734.8,734.67,3.104]
[1609573325676,0.24740321,734.79,734.67,3.104]
[1609573325874,0.24740321,734.79,734.62,111.118]
[1609573326775,6.01438,734.67,734.64,6.01438]
[1609573329182,0.24709347,734.65,734.64,6.01438]
[1609573330482,0.24709347,734.65,734.62,111.118]
[1609573330684,6.01438,734.67,734.62,111.118]
[1609573331286,0.24708889,734.64,734.62,111.118]
[1609573333386,0.24717413,734.65,734.52,6.01438]
[1609573333587,89.3193,734.63,734.48,4.534]
[1609573333788,15.0,734.62,734.35,77.8461]
[1609573334487,89.3193,734.63,734.35,77.8461]
[1609573335087,89.3193,734.63,734.54,6.01438]
[1609573335286,0.24717413,734.65,734.31,4.716]
[1609573335487,0.24717413,734.65,734.36,109.5889]
[1609573335687,0.24717413,734.65,734.36,112.9579]
[1609573336089,0.24717413,734.65,734.36,3.369]
[1609573336293,1.31832711,734.67,734.46,83.747]
[1609573337089,6.01438,734.58,734.46,83.747]
[1609573340089,0.2470429,734.53,734.44,6.01438]
[1609573340289,0.2470429,734.53,734.52,110.415]
[1609573341089,5.42832,736.08,734.52,110.415]
[1609573341090,0.24710419,734.57,734.52,110.415]
[1609573342191,0.24710419,734.57,734.36,3.369]
[1609573342390,0.24717988,734.63,734.48,101.6897]
[1609573342590,0.24717988,734.63,734.48,106.0557]
[1609573343090,0.24717988,734.63,734.62,6.01438]
[1609573343291,0.24717988,734.63,734.62,20.99108]
[1609573344590,0.24730401,734.63,734.62,20.99108]
[1609573344792,0.24730401,734.63,734.62,14.9767]
[1609573349294,0.24749223,734.64,734.62,14.9767]
[1609573349595,6.01438,734.63,734.62,14.9767]
[1609573351194,6.01438,734.63,734.48,4.366]
[1609573351494,6.01438,734.63,734.14,15.0]
[1609573351694,6.01438,734.63,734.49,6.01438]
[1609573351894,6.01438,734.63,734.54,15.0728]
[1609573352595,6.01438,734.63,734.49,6.01438]
[1609573353194,6.01438,734.63,734.46,4.136]
[1609573353695,6.01438,734.47,734.46,4.136]
[1609573357501,6.01438,734.47,734.31,114.2307]
[1609573357699,6.01438,734.32,734.31,114.2307]
[1609573361214,0.24737725,734.5,734.31,114.2307]
[1609573361402,0.24737725,734.5,734.31,3.607]
[1609573361603,0.24737725,734.5,734.36,109.3831]
[1609573361809,6.01438,734.45,734.31,3.607]
[1609573362007,6.01438,734.45,734.38,93.3701]
[1609573371016,6.01438,734.45,734.32,6.01438]
[1609573371216,6.01438,734.45,734.42,102.1958]
[1609573372420,6.01438,734.45,734.32,6.01438]
[1609573374119,6.01438,734.45,734.44,6.01438]
[1609573375421,0.2470622,734.47,734.43,104.8351]
[1609573375822,0.82328173,734.47,734.43,104.8351]
[1609573376223,6.01438,734.44,734.43,104.8351]
[1609573377024,6.26140009,734.44,734.43,104.8351]
[1609573380230,6.01438,734.44,734.43,104.8351]
[1609573383939,6.26123077,734.44,734.43,104.8351]
[1609573385937,0.24685077,734.44,734.43,104.8351]
[1609573386338,0.24685077,734.44,734.43,110.84948]
[1609573386541,0.24680024,734.46,734.43,110.84948]
[1609573388038,0.24680024,734.46,734.44,15.0]
[1609573388438,0.24705969,734.62,734.44,15.0]
[1609573389543,0.24718819,734.72,734.44,15.0]
[1609573390342,0.24718819,734.72,734.71,6.01438]
[1609573390542,0.24718819,734.72,734.71,19.34268]
[1609573391243,0.24714928,734.74,734.71,19.34268]
[1609573392442,6.01438,734.72,734.71,19.34268]
[1609573393449,6.01438,734.72,734.71,13.3283]
[1609573394649,1.31731277,734.73,734.71,13.3283]
[1609573396249,1.31720509,734.72,734.71,13.3283]
[1609573396447,7.33158509,734.72,734.71,13.3283]
[1609573398252,6.01438,734.72,734.71,13.3283]
[1609573399054,7.33146967,734.72,734.71,13.3283]
[1609573401656,7.33146967,734.72,734.62,3.871]
[1609573401855,6.01438,734.72,734.45,78.3421]
[1609573402458,1.31719475,734.73,734.45,78.3421]
[1609573402459,6.01438,734.46,734.45,78.3421]
[1609573403456,1.97428287,734.69,734.45,78.3421]
[1609573403658,0.24673749,734.54,734.45,78.3421]
[1609573404458,0.24673749,734.54,734.53,6.01438]
[1609573404659,0.24677403,734.57,734.53,3.418]
[1609573406062,0.24677619,734.58,734.53,3.418]
[1609573407463,0.24672455,734.55,734.53,3.418]
[1609573409864,0.24672455,734.55,734.45,78.3421]
[1609573410065,0.24673278,734.56,734.45,78.3421]
[1609573410464,0.24673278,734.56,734.51,6.01438]
[1609573410666,0.24673278,734.56,734.51,10.74438]
[1609573411266,0.24670434,734.57,734.51,10.74438]
[1609573411568,0.24670434,734.57,734.51,4.73]
[1609573412568,0.24670434,734.57,734.56,6.01438]
[1609573412868,6.01438,734.6,734.56,6.01438]
[1609573413768,6.01438,734.6,734.51,4.73]
[1609573413968,0.24655902,734.58,734.51,4.73]
[1609573415969,0.24655902,734.58,734.45,78.3421]
[1609573416272,0.24645966,734.55,734.45,78.3421]
[1609573416470,0.24645966,734.55,734.54,6.01438]
[1609573416671,0.24645966,734.55,734.54,10.77438]
[1609573417171,0.24645966,734.55,734.54,4.76]
[1609573417574,0.24586697,734.57,734.54,4.76]
[1609573417872,6.01438,734.6,734.54,4.76]
[1609573418976,0.24579283,734.56,734.54,4.76]
[1609573421678,0.24577811,734.58,734.54,4.76]
[1609573422379,0.24585234,734.57,734.54,4.76]
[1609573422679,0.24585234,734.57,734.45,84.35648]
[1609573423778,0.24584612,734.56,734.45,84.35648]
[1609573426678,0.24584612,734.56,734.45,78.3421]
[1609573427882,0.24578334,734.57,734.45,78.3421]
[1609573428584,0.24578334,734.57,734.46,6.01438]
[1609573428981,91.3856,734.56,734.46,4.309]
[1609573430584,6.01438,734.47,734.46,4.309]
[1609573433888,6.01438,734.47,734.31,3.607]
[1609573434087,6.01438,734.47,734.29,86.947]
[1609573434688,6.01438,734.33,734.29,86.947]
[1609573435690,6.01438,734.33,734.22,6.01438]
[1609573435890,6.01438,734.33,734.32,112.2816]
[1609573436090,6.01438,734.33,734.32,117.1996]
[1609573436891,6.01438,734.33,734.32,4.918]
[1609573437991,6.01438,734.33,734.32,107.6196]
[1609573442497,0.24551842,734.4,734.32,107.6196]
[1609573442698,6.01438,734.4,734.39,6.01438]
[1609573443700,6.01438,734.4,734.39,106.74588]
[1609573447106,0.24571308,734.46,734.39,106.74588]
[1609573447707,1.31046979,734.55,734.39,106.74588]
[1609573448008,0.24573627,734.48,734.39,106.74588]
[1609573448508,0.24573627,734.48,734.39,6.01438]
[1609573448708,0.24573627,734.48,734.47,6.01438]
[1609573448909,0.24573627,734.48,734.47,87.60438]
[1609573450309,0.24573627,734.48,734.47,81.59]
[1609573450610,0.24573627,734.48,734.47,87.60438]
[1609573451711,0.24573627,734.48,734.47,90.71338]
[1609573451912,0.24573501,734.55,734.47,90.71338]
[1609573453114,0.24534911,734.51,734.47,90.71338]
[1609573456020,0.24534911,734.51,734.47,9.12338]
[1609573456420,0.24534911,734.51,734.5,84.9991]
[1609573458623,6.25972911,734.51,734.5,84.9991]
[1609573463128,6.25972911,734.51,734.47,9.12338]
[1609573463530,6.25972911,734.51,734.47,3.109]
[1609573463732,6.25972911,734.51,734.33,105.5777]
[1609573464631,6.01438,734.39,734.38,6.01438]
[1609573482150,6.01438,734.39,734.32,4.918]
[1609573482352,112.89528,734.39,734.13,3.269]
[1609573482551,112.89528,734.39,734.04,86.7365]
[1609573483153,6.01438,734.05,734.04,86.7365]
[1609573487462,6.01438,734.05,733.95,0.6]
[1609573489164,6.01438,733.96,733.95,0.6]
[1609573489365,4.76,734.37,734.32,96.8356]
[1609573489564,11.7416,734.49,733.95,0.6]
[1609573489565,7.4541,735.19,733.95,5.075]
[1609573489770,12.1111,734.82,734.31,94.8844]
[1609573489965,12.1111,734.82,733.95,20.075]
[1609573490364,91.1245,734.51,733.95,5.075]
[1609573491164,6.01438,734.25,734.03,6.01438]
[1609573493167,15.24495136,734.5,734.04,13.7038]
[1609573493367,15.0,734.48,734.04,13.7038]
[1609573494268,11.6996,734.49,733.95,5.075]
[1609573494468,11.6996,734.49,734.04,92.3495]
[1609573494669,11.6996,734.49,733.95,5.075]
[1609573494670,0.2450698,734.21,733.95,5.075]
[1609573494871,0.2450698,734.21,734.08,93.903]
[1609573495169,6.01438,734.1,734.08,93.903]
[1609573501376,6.01438,734.1,733.95,5.075]
[1609573503178,0.24515754,734.14,733.95,5.075]
[1609573503179,6.01438,733.96,733.95,5.075]
[1609573509886,6.01438,733.96,733.95,114.0967]
[1609573511087,6.01438,733.96,733.95,113.4967]
[1609573516095,0.24516382,734.08,733.95,113.4967]
[1609573516294,0.24516382,734.08,733.95,4.475]
[1609573516494,0.24516382,734.08,734.07,85.1594]
[1609573517896,0.24516382,734.08,733.96,6.01438]
[1609573518098,0.24587589,734.07,733.96,6.01438]
[1609573518298,0.24587589,734.07,734.02,84.73]
[1609573519300,6.01438,734.15,734.02,84.73]
[1609573520602,0.24617011,734.23,734.02,84.73]
[1609573521205,6.01438,734.19,734.1,6.01438]
[1609573523204,6.01438,734.19,734.18,6.01438]
[1609573523403,6.01438,734.19,734.18,20.96268]
[1609573523604,6.01438,734.19,734.18,25.37668]
[1609573524003,0.24624961,734.24,734.18,25.37668]
[1609573528610,6.01438,734.39,734.18,25.37668]
[1609573528611,0.24642378,734.26,734.18,25.37668]
[1609573529610,6.26082057,734.39,734.18,25.37668]
[1609573530610,6.01438,734.39,734.18,25.37668]
[1609573531410,6.01438,734.39,734.38,6.01438]
[1609573531811,6.01438,734.39,734.38,9.87638]
[1609573532611,0.24660514,734.41,734.38,9.87638]
[1609573532814,0.24660514,734.41,734.38,24.87638]
[1609573533013,0.24660514,734.41,734.4,113.4629]
[1609573534518,0.24660514,734.41,734.4,128.4629]
[1609573536116,0.24688725,734.43,734.4,128.4629]
[1609573537217,0.24715102,734.63,734.4,113.4629]
[1609573537416,6.26153102,734.63,734.62,6.01438]
[1609573537617,6.26153102,734.63,734.62,10.25338]
[1609573537818,6.26153102,734.63,734.62,26.49248]
[1609573538420,6.01438,734.63,734.62,26.49248]
[1609573539421,6.00563497,734.63,734.62,26.49248]
[1609573539826,6.00563497,734.63,734.62,20.4781]
[1609573540735,6.00563497,734.63,734.62,4.239]
[1609573542731,10.98929396,734.63,734.47,91.2371]
[1609573543533,6.01438,734.48,734.47,91.2371]
[1609573544433,7.33053641,734.48,734.47,91.2371]
[1609573546039,7.33053641,734.48,734.38,3.862]
[1609573546437,7.33053641,734.48,734.32,6.01438]
[1609573547640,6.01438,734.33,734.32,6.01438]
[1609573550243,0.24669258,734.37,734.32,6.01438]
[1609573552451,6.26130233,734.39,734.32,6.01438]
[1609573553255,0.24686829,734.38,734.32,6.01438]
[1609573554254,0.24687594,734.39,734.32,6.01438]
[1609573555955,0.24688888,734.4,734.38,100.6769]
[1609573556154,0.24688888,734.4,734.38,105.4609]
[1609573557157,0.24688374,734.41,734.38,105.4609]
[1609573557755,0.24688374,734.41,734.4,6.01438]
[1609573558557,0.24740017,734.52,734.4,6.01438]
[1609573559457,0.24779041,734.54,734.4,6.01438]
[1609573559659,0.24779041,734.54,734.53,6.01438]
[1609573559857,0.24779041,734.54,734.53,9.65338]
[1609573560658,0.24797627,734.55,734.53,9.65338]
[1609573561758,6.01438,734.54,734.53,9.65338]
[1609573561958,6.01438,734.54,734.53,3.639]
[1609573564859,6.01438,734.54,734.41,6.01438]
[1609573565761,6.01438,734.45,734.41,6.01438]
[1609573566161,6.01438,734.45,734.38,105.4609]
[1609573566864,0.24789229,734.48,734.38,105.4609]
[1609573567765,0.24789229,734.48,734.46,6.01438]
[1609573567966,0.24811685,734.49,734.46,6.01438]
[1609573568766,6.26318915,734.5,734.46,6.01438]
[1609573571170,0.24880915,734.5,734.46,6.01438]
[1609573571570,0.24870645,734.49,734.46,6.01438]
[1609573572172,0.24882378,734.54,734.46,6.01438]
[1609573572371,0.24882378,734.54,734.38,105.4609]
[1609573573772,6.01438,734.48,734.41,6.01438]
[1609573575573,0.24880056,734.53,734.41,6.01438]
[1609573577374,0.24880056,734.53,734.52,105.1101]
[1609573577577,1.32765025,734.55,734.52,105.1101]
[1609573578377,0.24899475,734.57,734.52,105.1101]
[1609573579085,0.24903327,734.59,734.52,105.1101]
[1609573579286,0.24903327,734.59,734.49,6.01438]
[1609573579486,0.24903327,734.59,734.57,93.0154]
[1609573579985,0.24903327,734.59,734.58,6.01438]
[1609573580385,0.24903327,734.59,734.38,4.784]
[1609573580585,0.24903327,734.59,734.48,79.0768]
[1609573580786,0.24899765,734.57,734.48,79.0768]
[1609573581586,0.24893124,734.59,734.48,79.0768]
[1609573581987,0.24893124,734.59,734.58,6.01438]
[1609573582486,7.34201328,734.62,734.58,108.18478]
[1609573582688,7.34201328,734.62,734.58,102.1704]
[1609573582887,1.32709903,734.6,734.58,102.1704]
[1609573588190,4.98294119,734.61,734.58,102.1704]
[1609573589692,1.32752806,734.59,734.58,102.1704]
[1609573590092,1.32752806,734.59,734.58,108.18478]
[1609573590894,0.24901568,734.61,734.58,108.18478]
[1609573592094,6.01438,734.59,734.58,108.18478]
[1609573592293,0.24901568,734.61,734.58,108.18478]
[1609573593696,0.24901568,734.61,734.58,6.01438]
[1609573596096,6.01438,734.59,734.58,6.01438]
[1609573597499,0.24902571,734.62,734.58,6.01438]
[1609573597798,0.24896482,734.6,734.58,6.01438]
[1609573598197,6.01438,734.59,734.58,6.01438]
[1609573600202,6.26320298,734.59,734.58,6.01438]
[1609573600900,0.24882298,734.59,734.58,6.01438]
[1609573601101,1.32604657,734.62,734.58,6.01438]
[1609573602003,0.24862871,734.59,734.58,6.01438]
[1609573602202,6.26300871,734.59,734.58,6.01438]
[1609573602808,0.24862871,734.59,734.58,6.01438]
[1609573603606,1.99058385,734.7,734.58,6.01438]
[1609573603607,1.32647523,734.62,734.58,6.01438]
[1609573604208,6.01438,734.59,734.58,6.01438]
[1609573606812,1.32676048,734.62,734.58,6.01438]
[1609573608414,0.24882078,734.59,734.58,6.01438]
[1609573609415,1.32676048,734.62,734.58,6.01438]
[1609573609416,0.24888099,734.62,734.58,6.01438]
[1609573610117,0.24910518,734.65,734.58,6.01438]
[1609573611221,0.24910771,734.64,734.58,6.01438]
[1609573614825,0.24910479,734.65,734.58,6.01438]
[1609573615525,0.24910575,734.66,734.58,6.01438]
[1609573623640,0.24910724,734.69,734.58,6.01438]
[1609573624541,0.24910724,734.69,734.68,6.01438]
[1609573624740,0.24910724,734.69,734.68,10.28338]
[1609573625741,1.32858321,734.71,734.68,10.28338]
[1609573626544,0.24910901,734.69,734.68,10.28338]
[1609573630748,1.32858136,734.72,734.68,10.28338]
[1609573631651,1.32858136,734.72,734.68,4.269]
[1609573632351,1.32858136,734.72,734.54,77.7388]
[1609573632653,1.32857094,734.71,734.54,77.7388]
[1609573632952,1.32857094,734.71,734.7,6.01438]
[1609573633152,1.32857094,734.71,734.7,9.87838]
[1609573634156,1.32853339,734.72,734.7,9.87838]
[1609573636358,0.24909286,734.71,734.7,9.87838]
[1609573638260,1.32849526,734.74,734.7,9.87838]
[1609573639261,1.32849978,734.73,734.7,9.87838]
[1609573640164,0.24909057,734.71,734.7,9.87838]
[1609573641564,0.24909057,734.71,734.7,3.864]
[1609573641966,0.24909057,734.71,734.47,4.392]
[1609573642365,0.24909057,734.71,734.37,100.5398]
[1609573642869,4.98190826,734.74,734.37,100.5398]
[1609573643167,4.98190826,734.74,734.61,6.01438]
[1609573643569,4.98190826,734.74,734.61,9.87838]
[1609573645273,4.98190826,734.74,734.73,6.01438]
[1609573645971,4.98190826,734.74,734.73,17.10128]
[1609573646375,0.24909267,734.74,734.73,17.10128]
[1609573646974,0.24909267,734.74,734.73,6.01438]
[1609573647373,6.26347267,734.74,734.73,6.01438]
[1609573647574,6.01438,734.74,734.73,6.01438]
[1609573647775,0.2490859,734.78,734.73,6.01438]
[1609573648475,0.24908084,734.77,734.73,6.01438]
[1609573649577,0.24908084,734.77,734.61,3.864]
[1609573649774,0.24908084,734.77,734.45,93.6754]
[1609573650378,6.01438,734.84,734.45,93.6754]
[1609573651276,6.01438,734.84,734.74,6.01438]
[1609573651579,0.24908121,734.76,734.74,6.01438]
[1609573652778,0.24907998,734.77,734.74,6.01438]
[1609573653377,0.24907998,734.77,734.74,9.67738]
[1609573655382,0.24908343,734.76,734.74,9.67738]
[1609573656984,1.99266739,734.87,734.74,9.67738]
[1609573656985,0.24908442,734.77,734.74,9.67738]
[1609573660888,0.2490892,734.76,734.74,9.67738]
[1609573661689,0.2490906,734.75,734.74,9.67738]
[1609573663094,1.32849654,734.77,734.74,9.67738]